[Event "European Individual Women's Chess Championship 2017"]
[Site "Riga LAT"]
[Date "2017.04.21"]
[Round "10.10"]
[White "Galliamova, Alisa"]
[Black "Zimina, Olga"]
[Result "1-0"]
[LiveChessVersion "1.4.8"]
[BlackElo "2395"]
[WhiteElo "2444"]
[ECO "A43"]
[TimeControl "40/5400:1800+30"]

1. d4 {[%clk 1:30:57]} c5 {[%clk 1:30:48]} 2. d5 {[%clk 1:21:34]} g6
{[%clk 1:30:49]} 3. e4 {[%clk 1:20:18]} Bg7 {[%clk 1:28:39]} 4. h4
{[%clk 1:16:30]} d6 {[%clk 1:28:14]} 5. h5 {[%clk 1:16:11]} e5 {[%clk 1:19:49]}
6. dxe6 {[%clk 1:14:01]} Bxe6 {[%clk 1:19:27]} 7. Ne2 {[%clk 1:06:38]} Nc6
{[%clk 1:09:46]} 8. Nbc3 {[%clk 1:04:16]} Qd7 {[%clk 1:07:27]} 9. h6
{[%clk 0:50:46]} Be5 {[%clk 1:00:44]} 10. Bf4 {[%clk 0:47:12]} O-O-O
{[%clk 0:50:26]} 11. Qd2 {[%clk 0:46:33]} f5 {[%clk 0:48:09]} 12. O-O-O
{[%clk 0:41:37]} Nf6 {[%clk 0:48:07]} 13. exf5 {[%clk 0:39:16]} gxf5
{[%clk 0:37:09]} 14. Bg5 {[%clk 0:35:59]} Qf7 {[%clk 0:31:06]} 15. f4
{[%clk 0:30:30]} Bxc3 {[%clk 0:27:56]} 16. Nxc3 {[%clk 0:30:33]} d5
{[%clk 0:27:16]} 17. Bb5 {[%clk 0:28:45]} Nd4 {[%clk 0:25:23]} 18. Qe3
{[%clk 0:24:09]} a6 {[%clk 0:17:42]} 19. Rxd4 {[%clk 0:19:40]} axb5
{[%clk 0:16:53]} 20. Nxb5 {[%clk 0:18:09]} cxd4 {[%clk 0:16:33]} 21. Qa3
{[%clk 0:16:08]} Ne4 {[%clk 0:13:50]} 22. Qa8+ {[%clk 0:14:02]} Kd7
{[%clk 0:14:19]} 23. Qxb7+ {[%clk 0:14:04]} Ke8 {[%clk 0:14:48]} 24. Nc7+
{[%clk 0:13:21]} Kd7 {[%clk 0:15:08]} 25. Nb5+ {[%clk 0:12:36]} Ke8
{[%clk 0:15:33]} 26. Nc7+ {[%clk 0:12:47]} Kd7 {[%clk 0:15:56]} 27. Nxd5+
{[%clk 0:11:25]} Ke8 {[%clk 0:13:23]} 28. Nc7+ {[%clk 0:11:21]} Kd7
{[%clk 0:13:47]} 29. Nd5+ {[%clk 0:11:14]} Ke8 {[%clk 0:14:09]} 30. Nc7+
{[%clk 0:11:03]} Kd7 {[%clk 0:14:26]} 31. Rd1 {[%clk 0:07:47]} Rb8
{[%clk 0:05:35]} 32. Rxd4+ {[%clk 0:07:27]} Nd6 {[%clk 0:06:03]} 33. Rxd6+
{[%clk 0:06:58]} Kxd6 {[%clk 0:06:17]} 34. Nb5+ {[%clk 0:07:11]} Kc5
{[%clk 0:06:22]} 35. Be7+ {[%clk 0:07:27]} Qxe7 {[%clk 0:06:13]} 36. Qxe7+
{[%clk 0:07:51]} Kxb5 {[%clk 0:06:35]} 37. Qxe6 {[%clk 0:08:13]} Rbf8
{[%clk 0:05:33]} 38. b3 {[%clk 0:08:08]} Rhg8 {[%clk 0:05:45]} 39. a4+
{[%clk 0:07:55]} Ka5 {[%clk 0:05:10]} 40. Kb2 {[%clk 0:36:42]} Rb8
{[%clk 0:33:27]} 41. Qxf5+ {[%clk 0:36:15]} Ka6 {[%clk 0:33:00]} 42. Qxh7
{[%clk 0:36:23]} Rg3 {[%clk 0:29:20]} 43. Qe4 {[%clk 0:33:53]} Rgg8
{[%clk 0:28:26]} 44. h7 {[%clk 0:33:06]} Rge8 {[%clk 0:28:51]} 45. Qc4+
{[%clk 0:33:07]} Ka5 {[%clk 0:29:12]} 46. g4 {[%clk 0:32:56]} Rec8
{[%clk 0:29:32]} 47. Qd5+ {[%clk 0:33:07]} Ka6 {[%clk 0:29:48]} 48. g5
{[%clk 0:33:11]} 1-0

[Event "European Individual Women's Chess Championship 2017"]
[Site "Riga LAT"]
[Date "2017.04.21"]
[Round "10.11"]
[White "Zhukova, Natalia"]
[Black "Brunello, Marina"]
[Result "1-0"]
[LiveChessVersion "1.4.8"]
[BlackElo "2354"]
[WhiteElo "2438"]
[ECO "A11"]
[TimeControl "40/5400:1800+30"]

1. c4 {[%clk 1:30:50]} c6 {[%clk 1:30:51]} 2. e4 {[%clk 1:31:05]} e5
{[%clk 1:31:07]} 3. Nf3 {[%clk 1:30:19]} d6 {[%clk 1:31:09]} 4. d4
{[%clk 1:30:27]} Nd7 {[%clk 1:30:58]} 5. Nc3 {[%clk 1:30:22]} Ngf6
{[%clk 1:30:55]} 6. Be2 {[%clk 1:30:29]} Be7 {[%clk 1:29:58]} 7. O-O
{[%clk 1:30:47]} O-O {[%clk 1:29:58]} 8. Qc2 {[%clk 1:27:16]} a5 {[%clk 1:24:12]}
9. Be3 {[%clk 1:19:57]} exd4 {[%clk 1:22:56]} 10. Nxd4 {[%clk 1:20:19]} Nc5
{[%clk 1:22:52]} 11. Rad1 {[%clk 1:12:39]} Qc7 {[%clk 1:18:49]} 12. h3
{[%clk 1:03:27]} Re8 {[%clk 1:16:08]} 13. f4 {[%clk 0:48:58]} Bf8
{[%clk 1:12:51]} 14. Bf3 {[%clk 0:49:20]} Nfd7 {[%clk 1:10:54]} 15. Bf2
{[%clk 0:45:02]} Ne6 {[%clk 1:01:00]} 16. Nde2 {[%clk 0:44:01]} g6
{[%clk 1:00:46]} 17. Qd2 {[%clk 0:40:51]} Nec5 {[%clk 0:55:19]} 18. b3
{[%clk 0:33:42]} Qb6 {[%clk 0:49:14]} 19. Rb1 {[%clk 0:30:31]} Qc7
{[%clk 0:44:31]} 20. Rfd1 {[%clk 0:30:19]} Nf6 {[%clk 0:43:33]} 21. Bxc5
{[%clk 0:22:04]} dxc5 {[%clk 0:43:57]} 22. e5 {[%clk 0:22:30]} Nd7
{[%clk 0:44:08]} 23. Ne4 {[%clk 0:22:44]} Bg7 {[%clk 0:42:23]} 24. N2c3
{[%clk 0:13:15]} Re7 {[%clk 0:34:38]} 25. Qf2 {[%clk 0:11:36]} f6
{[%clk 0:32:56]} 26. Qh4 {[%clk 0:09:37]} g5 {[%clk 0:31:17]} 27. fxg5
{[%clk 0:09:53]} fxg5 {[%clk 0:29:49]} 28. Nxg5 {[%clk 0:10:07]} Bxe5
{[%clk 0:29:25]} 29. Bd5+ {[%clk 0:03:30]} cxd5 {[%clk 0:25:02]} 30. Nxd5
{[%clk 0:03:58]} Qd6 {[%clk 0:25:16]} 31. Ne4 {[%clk 0:03:42]} Bh2+
{[%clk 0:23:54]} 32. Kh1 {[%clk 0:03:51]} Rxe4 {[%clk 0:24:18]} 33. Qxe4
{[%clk 0:03:58]} Be5 {[%clk 0:23:41]} 34. Rf1 {[%clk 0:01:28]} Nf8
{[%clk 0:15:04]} 35. Nb6 {[%clk 0:01:15]} Qxb6 {[%clk 0:07:31]} 36. Qxe5
{[%clk 0:01:43]} Qh6 {[%clk 0:07:56]} 37. Rf3 {[%clk 0:00:32]} Qg7
{[%clk 0:06:15]} 38. Rg3 {[%clk 0:00:32]} Ng6 {[%clk 0:06:42]} 39. Qxc5
{[%clk 0:00:36]} Bd7 {[%clk 0:06:39]} 40. Qd5+ {[%clk 0:30:56]} Qf7
{[%clk 0:34:03]} 41. Qxb7 {[%clk 0:29:16]} Rf8 {[%clk 0:34:17]} 42. Rd1
{[%clk 0:23:37]} 1-0

[Event "European Individual Women's Chess Championship 2017"]
[Site "Riga LAT"]
[Date "2017.04.21"]
[Round "10.12"]
[White "Gaponenko, Inna"]
[Black "Ambartsumova, Karina"]
[Result "1-0"]
[LiveChessVersion "1.4.8"]
[BlackElo "2282"]
[WhiteElo "2416"]
[ECO "B47"]
[TimeControl "40/5400:1800+30"]

1. e4 {[%clk 1:30:57]} c5 {[%clk 1:30:42]} 2. Nf3 {[%clk 1:31:18]} Nc6
{[%clk 1:30:20]} 3. d4 {[%clk 1:30:04]} cxd4 {[%clk 1:30:25]} 4. Nxd4
{[%clk 1:30:32]} e6 {[%clk 1:29:44]} 5. Nc3 {[%clk 1:29:55]} Qc7 {[%clk 1:29:33]}
6. Be2 {[%clk 1:23:22]} Nf6 {[%clk 1:26:57]} 7. O-O {[%clk 1:23:40]} Be7
{[%clk 1:25:02]} 8. Be3 {[%clk 1:23:37]} O-O {[%clk 1:20:07]} 9. f4
{[%clk 1:21:06]} d6 {[%clk 1:19:13]} 10. Kh1 {[%clk 1:17:24]} Nxd4
{[%clk 1:16:17]} 11. Qxd4 {[%clk 1:17:48]} b6 {[%clk 1:15:46]} 12. f5
{[%clk 1:12:41]} e5 {[%clk 1:03:28]} 13. Qd3 {[%clk 0:40:34]} Bb7
{[%clk 0:58:29]} 14. Bf3 {[%clk 0:40:59]} Rac8 {[%clk 0:40:06]} 15. g4
{[%clk 0:35:16]} h6 {[%clk 0:22:02]} 16. g5 {[%clk 0:10:03]} hxg5
{[%clk 0:21:10]} 17. Bxg5 {[%clk 0:10:32]} Qc4 {[%clk 0:15:57]} 18. Rg1
{[%clk 0:06:54]} Qxd3 {[%clk 0:07:12]} 19. cxd3 {[%clk 0:07:23]} Rfd8
{[%clk 0:06:25]} 20. Rg3 {[%clk 0:01:41]} Rc7 {[%clk 0:01:55]} 21. Rag1
{[%clk 0:01:16]} Kf8 {[%clk 0:00:50]} 22. Rh3 {[%clk 0:00:47]} Ng8
{[%clk 0:01:14]} 23. Rh8 {[%clk 0:00:56]} Bxg5 {[%clk 0:01:09]} 24. Rxg5
{[%clk 0:01:25]} f6 {[%clk 0:01:08]} 25. Rg3 {[%clk 0:00:39]} Bc6
{[%clk 0:00:38]} 26. Bd1 {[%clk 0:00:39]} Be8 {[%clk 0:00:52]} 27. h4
{[%clk 0:00:42]} Bf7 {[%clk 0:00:42]} 28. h5 {[%clk 0:01:05]} Rdc8
{[%clk 0:00:32]} 29. Bb3 {[%clk 0:00:41]} Bxb3 {[%clk 0:00:33]} 30. axb3
{[%clk 0:01:10]} Kf7 {[%clk 0:00:42]} 31. Rh7 {[%clk 0:01:03]} Kf8
{[%clk 0:01:09]} 32. Kg2 {[%clk 0:00:41]} Nh6 {[%clk 0:00:33]} 33. Kf2
{[%clk 0:00:41]} Ng8 {[%clk 0:00:37]} 34. Nd5 {[%clk 0:00:41]} Rd7 1-0

[Event "European Individual Women's Chess Championship 2017"]
[Site "Riga LAT"]
[Date "2017.04.21"]
[Round "10.13"]
[White "Buksa, Nataliya"]
[Black "Stefanova, Antoaneta"]
[Result "1/2-1/2"]
[LiveChessVersion "1.4.8"]
[BlackElo "2527"]
[WhiteElo "2314"]
[ECO "C95"]
[TimeControl "40/5400:1800+30"]

1. e4 {[%clk 1:30:52]} e5 {[%clk 1:30:53]} 2. Nf3 {[%clk 1:31:14]} Nc6
{[%clk 1:31:17]} 3. Bb5 {[%clk 1:31:39]} a6 {[%clk 1:31:43]} 4. Ba4
{[%clk 1:32:06]} Nf6 {[%clk 1:32:07]} 5. O-O {[%clk 1:32:25]} Be7
{[%clk 1:32:23]} 6. Re1 {[%clk 1:32:30]} b5 {[%clk 1:32:41]} 7. Bb3
{[%clk 1:32:58]} d6 {[%clk 1:33:04]} 8. c3 {[%clk 1:33:04]} O-O {[%clk 1:33:04]}
9. h3 {[%clk 1:33:20]} Nb8 {[%clk 1:32:07]} 10. d4 {[%clk 1:33:21]} Nbd7
{[%clk 1:32:22]} 11. Nbd2 {[%clk 1:33:46]} Bb7 {[%clk 1:32:44]} 12. Bc2
{[%clk 1:34:06]} Re8 {[%clk 1:32:29]} 13. Nf1 {[%clk 1:34:31]} Bf8
{[%clk 1:32:54]} 14. Ng3 {[%clk 1:34:57]} g6 {[%clk 1:33:18]} 15. a4
{[%clk 1:35:19]} Nb6 {[%clk 1:32:02]} 16. a5 {[%clk 1:13:00]} Nbd7
{[%clk 1:29:46]} 17. b3 {[%clk 1:12:57]} c6 {[%clk 1:04:45]} 18. Nh2
{[%clk 0:52:45]} Bg7 {[%clk 0:51:08]} 19. dxe5 {[%clk 0:37:34]} dxe5
{[%clk 0:50:55]} 20. Be3 {[%clk 0:38:00]} Qc7 {[%clk 0:46:55]} 21. Ng4
{[%clk 0:31:49]} Nxg4 {[%clk 0:44:51]} 22. hxg4 {[%clk 0:32:05]} c5
{[%clk 0:42:30]} 23. g5 {[%clk 0:26:40]} Nf8 {[%clk 0:42:17]} 24. Qg4
{[%clk 0:27:06]} Bc8 {[%clk 0:39:34]} 25. Qh4 {[%clk 0:25:31]} Qe7
{[%clk 0:39:55]} 26. Nf1 {[%clk 0:20:52]} h6 {[%clk 0:28:57]} 27. Nh2
{[%clk 0:20:26]} Ne6 {[%clk 0:28:11]} 28. Nf3 {[%clk 0:20:51]} hxg5
{[%clk 0:26:04]} 29. Nxg5 {[%clk 0:20:09]} Nf8 {[%clk 0:20:27]} 30. Qg3
{[%clk 0:19:24]} f6 {[%clk 0:19:52]} 31. Nf3 {[%clk 0:18:43]} g5 {[%clk 0:15:56]}
32. Nh2 {[%clk 0:14:21]} Be6 {[%clk 0:15:55]} 33. f3 {[%clk 0:14:07]} Ng6
{[%clk 0:15:01]} 34. Qf2 {[%clk 0:14:13]} Bf8 {[%clk 0:15:05]} 35. g3
{[%clk 0:13:34]} Rac8 {[%clk 0:14:11]} 36. Ng4 {[%clk 0:13:44]} Nh8
{[%clk 0:06:37]} 37. Nh2 {[%clk 0:10:26]} Qf7 {[%clk 0:06:16]} 38. Rab1
{[%clk 0:10:23]} Qc7 {[%clk 0:04:46]} 39. Ra1 {[%clk 0:07:19]} Ng6
{[%clk 0:01:41]} 40. Ng4 {[%clk 0:37:26]} Bg7 {[%clk 0:31:43]} 41. Kg2
{[%clk 0:19:48]} Kf7 {[%clk 0:17:22]} 42. Rh1 {[%clk 0:17:16]} Rh8
{[%clk 0:17:44]} 43. Rxh8 {[%clk 0:13:49]} Nxh8 44. Nh2 {[%clk 0:11:56]} Ng6
{[%clk 0:16:11]} 45. Ng4 {[%clk 0:10:58]} Ne7 {[%clk 0:15:09]} 46. Nh2
{[%clk 0:08:57]} Nc6 {[%clk 0:10:34]} 47. Bxc5 {[%clk 0:07:27]} Nxa5
{[%clk 0:10:57]} 48. Bb4 {[%clk 0:06:56]} Nc6 {[%clk 0:10:35]} 49. Rxa6
{[%clk 0:06:52]} Bd7 {[%clk 0:08:08]} 50. Ra2 {[%clk 0:04:19]} Nxb4
{[%clk 0:07:33]} 51. cxb4 {[%clk 0:04:47]} Qd6 {[%clk 0:04:26]} 52. Nf1
{[%clk 0:04:46]} Qxb4 {[%clk 0:03:48]} 53. Ne3 {[%clk 0:05:00]} Qd4
{[%clk 0:03:32]} 54. Nd5 {[%clk 0:03:42]} Qxf2+ {[%clk 0:01:56]} 55. Kxf2
{[%clk 0:04:11]} Bf8 {[%clk 0:01:49]} 56. Bd3 {[%clk 0:04:15]} Bc5+
{[%clk 0:01:33]} 57. Kg2 {[%clk 0:04:44]} g4 {[%clk 0:01:34]} 58. Rc2
{[%clk 0:03:30]} gxf3+ {[%clk 0:01:42]} 59. Kxf3 {[%clk 0:03:56]} Ke6
{[%clk 0:01:21]} 60. b4 {[%clk 0:04:09]} Bf8 {[%clk 0:01:25]} 61. Rxc8
{[%clk 0:04:15]} Bxc8 {[%clk 0:01:54]} 62. Bxb5 {[%clk 0:04:44]} f5
{[%clk 0:01:41]} 63. Bc4 {[%clk 0:04:50]} fxe4+ {[%clk 0:01:51]} 64. Kxe4
{[%clk 0:05:18]} Bb7 {[%clk 0:02:07]} 65. b5 {[%clk 0:05:21]} Kd6
{[%clk 0:01:47]} 66. Ba2 {[%clk 0:04:46]} Be7 {[%clk 0:01:51]} 67. Bb3
{[%clk 0:04:16]} Bd8 {[%clk 0:02:16]} 68. g4 {[%clk 0:04:20]} Ke6
{[%clk 0:01:50]} 69. Bc4 {[%clk 0:04:26]} Kd6 {[%clk 0:02:11]} 70. Bb3
{[%clk 0:04:12]} Bh4 {[%clk 0:02:08]} 71. Ba2 {[%clk 0:04:03]} 1/2-1/2

[Event "European Individual Women's Chess Championship 2017"]
[Site "Riga LAT"]
[Date "2017.04.21"]
[Round "10.14"]
[White "Batsiashvili, Nino"]
[Black "Pustovoitova, Daria"]
[Result "0-1"]
[LiveChessVersion "1.4.8"]
[BlackElo "2411"]
[WhiteElo "2496"]
[ECO "E11"]
[TimeControl "40/5400:1800+30"]

1. d4 {[%clk 1:30:57]} Nf6 {[%clk 1:30:58]} 2. c4 {[%clk 1:31:22]} e6
{[%clk 1:31:22]} 3. Nf3 {[%clk 1:31:47]} Bb4+ {[%clk 1:31:44]} 4. Bd2
{[%clk 1:32:12]} c5 {[%clk 1:32:08]} 5. Bxb4 {[%clk 1:30:47]} cxb4
{[%clk 1:32:35]} 6. e3 {[%clk 1:30:24]} O-O {[%clk 1:31:38]} 7. Bd3
{[%clk 1:30:47]} b6 {[%clk 1:30:26]} 8. Nbd2 {[%clk 1:30:53]} Bb7
{[%clk 1:30:45]} 9. Qc2 {[%clk 1:30:04]} h6 {[%clk 1:28:59]} 10. O-O
{[%clk 1:13:22]} d6 {[%clk 1:28:08]} 11. e4 {[%clk 1:04:50]} Nc6 {[%clk 1:13:01]}
12. d5 {[%clk 1:03:36]} Ne7 {[%clk 1:07:18]} 13. a3 {[%clk 0:56:32]} bxa3
{[%clk 1:06:56]} 14. Rxa3 {[%clk 0:57:01]} exd5 {[%clk 1:00:06]} 15. exd5
{[%clk 0:56:19]} a5 {[%clk 0:59:29]} 16. Nd4 {[%clk 0:56:08]} Nd7
{[%clk 0:55:15]} 17. f4 {[%clk 0:51:24]} Kh8 {[%clk 0:54:38]} 18. Ne4
{[%clk 0:31:25]} Nc5 {[%clk 0:48:22]} 19. Qc3 {[%clk 0:23:58]} Nxe4
{[%clk 0:36:43]} 20. Bxe4 {[%clk 0:24:24]} Re8 {[%clk 0:36:00]} 21. Bb1
{[%clk 0:22:14]} Ng8 {[%clk 0:36:07]} 22. Nf5 {[%clk 0:18:27]} Nf6
{[%clk 0:31:42]} 23. Qg3 {[%clk 0:15:26]} Rg8 {[%clk 0:30:59]} 24. Re1
{[%clk 0:13:28]} Bc8 {[%clk 0:30:14]} 25. Nd4 {[%clk 0:08:47]} Bd7
{[%clk 0:29:35]} 26. Rae3 {[%clk 0:08:53]} Qc7 {[%clk 0:28:36]} 27. Bd3
{[%clk 0:07:04]} Qc5 {[%clk 0:28:22]} 28. Nb3 {[%clk 0:05:16]} Qb4
{[%clk 0:28:41]} 29. Nd4 {[%clk 0:04:28]} Qxb2 {[%clk 0:27:37]} 30. Nf3
{[%clk 0:04:57]} Rge8 {[%clk 0:25:29]} 31. Ne5 {[%clk 0:03:42]} dxe5 32. fxe5
{[%clk 0:04:11]} Ng4 {[%clk 0:19:44]} 33. e6 {[%clk 0:02:23]} Nxe3
{[%clk 0:19:22]} 34. exd7 {[%clk 0:02:42]} Qd4 {[%clk 0:07:41]} 35. dxe8=Q+
{[%clk 0:01:48]} Rxe8 {[%clk 0:08:08]} 36. Be2 {[%clk 0:00:39]} Nc2+
{[%clk 0:07:45]} 37. Kf1 {[%clk 0:00:43]} Nxe1 {[%clk 0:07:47]} 38. Qxe1
{[%clk 0:01:11]} Qf4+ {[%clk 0:07:21]} 39. Kg1 {[%clk 0:01:30]} Qxc4
{[%clk 0:07:39]} 40. Bxc4 {[%clk 0:31:38]} Rxe1+ {[%clk 0:38:05]} 41. Kf2
{[%clk 0:32:05]} Rc1 {[%clk 0:37:17]} 42. Ba2 {[%clk 0:30:24]} Kg8
{[%clk 0:37:03]} 43. Ke3 {[%clk 0:30:41]} Kf8 {[%clk 0:37:28]} 44. d6
{[%clk 0:30:16]} Rd1 {[%clk 0:37:53]} 0-1

[Event "European Individual Women's Chess Championship 2017"]
[Site "Riga LAT"]
[Date "2017.04.21"]
[Round "10.15"]
[White "Girya, Olga"]
[Black "Kovanova, Baira"]
[Result "1-0"]
[LiveChessVersion "1.4.8"]
[BlackElo "2376"]
[WhiteElo "2470"]
[ECO "E15"]
[TimeControl "40/5400:1800+30"]

1. d4 {[%clk 1:30:58]} Nf6 {[%clk 1:30:56]} 2. c4 {[%clk 1:31:21]} e6
{[%clk 1:31:22]} 3. Nf3 {[%clk 1:31:46]} b6 {[%clk 1:31:43]} 4. g3
{[%clk 1:32:11]} Bb4+ {[%clk 1:32:04]} 5. Bd2 {[%clk 1:32:36]} Bxd2+
{[%clk 1:32:29]} 6. Qxd2 {[%clk 1:33:00]} Ba6 {[%clk 1:32:55]} 7. b3
{[%clk 1:33:21]} O-O {[%clk 1:33:14]} 8. Nc3 {[%clk 1:31:52]} d5 {[%clk 1:32:50]}
9. cxd5 {[%clk 1:31:52]} exd5 {[%clk 1:33:07]} 10. Bg2 {[%clk 1:32:16]} Qd6
{[%clk 1:31:19]} 11. Ne5 {[%clk 1:32:31]} Nbd7 {[%clk 1:26:26]} 12. Nxd7
{[%clk 1:23:55]} Qxd7 {[%clk 1:26:34]} 13. O-O {[%clk 1:24:00]} Rfe8
{[%clk 1:24:37]} 14. Rfc1 {[%clk 1:23:33]} Rac8 {[%clk 1:13:24]} 15. Rc2
{[%clk 1:21:20]} Ne4 {[%clk 1:02:36]} 16. Nxe4 {[%clk 1:20:42]} dxe4
{[%clk 1:02:49]} 17. Rac1 {[%clk 1:14:04]} c6 {[%clk 0:59:44]} 18. Bf1
{[%clk 0:57:26]} Qd5 {[%clk 0:57:53]} 19. Qf4 {[%clk 0:44:06]} f5
{[%clk 0:51:26]} 20. h4 {[%clk 0:42:22]} Re6 {[%clk 0:39:53]} 21. Rc3
{[%clk 0:36:25]} Rf6 {[%clk 0:36:40]} 22. a4 {[%clk 0:32:08]} Qd7
{[%clk 0:34:56]} 23. b4 {[%clk 0:31:42]} Rcf8 {[%clk 0:26:09]} 24. b5
{[%clk 0:29:50]} Bb7 {[%clk 0:24:46]} 25. e3 {[%clk 0:28:39]} Rg6
{[%clk 0:24:11]} 26. Be2 {[%clk 0:27:04]} Kh8 {[%clk 0:22:11]} 27. h5
{[%clk 0:26:07]} Rgf6 {[%clk 0:21:25]} 28. Kg2 {[%clk 0:25:18]} Qd5
{[%clk 0:20:14]} 29. Qe5 {[%clk 0:18:57]} cxb5 {[%clk 0:10:15]} 30. Qxd5
{[%clk 0:17:42]} Bxd5 {[%clk 0:10:43]} 31. axb5 {[%clk 0:12:33]} Kg8
{[%clk 0:07:30]} 32. Rc7 {[%clk 0:12:45]} R6f7 {[%clk 0:06:49]} 33. Rxf7
{[%clk 0:05:31]} Rxf7 {[%clk 0:07:14]} 34. g4 {[%clk 0:04:07]} g6
{[%clk 0:05:48]} 35. g5 {[%clk 0:03:57]} Rd7 {[%clk 0:03:32]} 36. Rc8+
{[%clk 0:03:18]} Kf7 {[%clk 0:03:21]} 37. h6 {[%clk 0:02:56]} Ke7
{[%clk 0:01:34]} 38. Kg3 {[%clk 0:02:52]} Kd6 {[%clk 0:00:55]} 39. Kf4
{[%clk 0:02:40]} Be6 {[%clk 0:00:40]} 40. Rc6+ {[%clk 0:31:11]} Ke7
{[%clk 0:31:04]} 41. Bc4 {[%clk 0:13:46]} Bxc4 {[%clk 0:18:31]} 42. Rxc4
{[%clk 0:14:14]} Kd8 {[%clk 0:18:06]} 43. Ke5 {[%clk 0:13:34]} Re7+
{[%clk 0:09:44]} 44. Kf6 {[%clk 0:13:58]} Rd7 {[%clk 0:10:04]} 45. Rc6
{[%clk 0:13:49]} Rb7 {[%clk 0:10:22]} 46. d5 {[%clk 0:12:31]} Rd7
{[%clk 0:10:03]} 47. d6 {[%clk 0:12:48]} Rb7 {[%clk 0:07:36]} 48. Rc7
{[%clk 0:13:09]} 1-0

[Event "European Individual Women's Chess Championship 2017"]
[Site "Riga LAT"]
[Date "2017.04.21"]
[Round "10.16"]
[White "Mammadova, Gulnar"]
[Black "Javakhishvili, Lela"]
[Result "1/2-1/2"]
[LiveChessVersion "1.4.8"]
[BlackElo "2456"]
[WhiteElo "2357"]
[ECO "B08"]
[TimeControl "40/5400:1800+30"]

1. e4 {[%clk 1:30:57]} d6 {[%clk 1:30:52]} 2. d4 {[%clk 1:31:13]} Nf6
{[%clk 1:31:15]} 3. Nc3 {[%clk 1:31:27]} g6 {[%clk 1:31:38]} 4. Nf3
{[%clk 1:31:04]} Bg7 {[%clk 1:31:50]} 5. Be2 {[%clk 1:31:00]} O-O
{[%clk 1:31:42]} 6. O-O {[%clk 1:30:32]} Bg4 {[%clk 1:27:43]} 7. h3
{[%clk 1:25:53]} Bxf3 {[%clk 1:28:06]} 8. Bxf3 {[%clk 1:26:19]} Nc6
{[%clk 1:28:06]} 9. d5 {[%clk 1:24:57]} Ne5 {[%clk 1:28:24]} 10. Be2
{[%clk 1:24:58]} c6 {[%clk 1:28:33]} 11. Be3 {[%clk 1:19:46]} Qa5
{[%clk 1:28:13]} 12. f4 {[%clk 1:13:33]} Ned7 {[%clk 1:28:36]} 13. Bf3
{[%clk 1:13:23]} Rfc8 {[%clk 1:18:13]} 14. dxc6 {[%clk 1:03:58]} bxc6
{[%clk 1:18:17]} 15. a3 {[%clk 1:03:50]} Rab8 {[%clk 1:11:55]} 16. b4
{[%clk 1:00:46]} Qc7 {[%clk 1:12:15]} 17. Qe1 {[%clk 0:59:45]} Nb6
{[%clk 1:00:46]} 18. Be2 {[%clk 0:53:57]} Re8 {[%clk 0:55:23]} 19. Rd1
{[%clk 0:51:39]} Nbd7 {[%clk 0:46:50]} 20. h4 {[%clk 0:43:29]} a5
{[%clk 0:44:27]} 21. Rb1 {[%clk 0:42:28]} axb4 {[%clk 0:42:11]} 22. axb4
{[%clk 0:42:37]} e5 {[%clk 0:39:21]} 23. f5 {[%clk 0:27:52]} d5 {[%clk 0:39:28]}
24. Qg3 {[%clk 0:27:37]} Qd6 {[%clk 0:34:18]} 25. fxg6 {[%clk 0:23:04]} fxg6
{[%clk 0:34:02]} 26. exd5 {[%clk 0:22:03]} cxd5 {[%clk 0:32:30]} 27. Rfd1
{[%clk 0:21:16]} Qc6 {[%clk 0:29:24]} 28. Ba7 {[%clk 0:19:02]} Rbc8
{[%clk 0:24:03]} 29. Nb5 {[%clk 0:17:40]} Qxc2 {[%clk 0:17:53]} 30. Bd3
{[%clk 0:17:52]} Qa4 {[%clk 0:16:22]} 31. Bf2 {[%clk 0:14:27]} Re7
{[%clk 0:10:43]} 32. Qg5 {[%clk 0:10:33]} e4 {[%clk 0:06:07]} 33. Be2
{[%clk 0:09:07]} e3 {[%clk 0:03:43]} 34. Bg3 {[%clk 0:06:50]} Qc2
{[%clk 0:02:50]} 35. Nd4 {[%clk 0:05:42]} Qe4 {[%clk 0:01:58]} 36. Bd6
{[%clk 0:03:37]} h6 {[%clk 0:02:20]} 37. Qg3 {[%clk 0:03:56]} Nh5
{[%clk 0:00:58]} 38. Bxh5 {[%clk 0:04:11]} Bxd4 {[%clk 0:01:14]} 39. Bxg6
{[%clk 0:01:56]} e2+ {[%clk 0:01:35]} 40. Kh2 {[%clk 0:32:15]} Be5
{[%clk 0:30:45]} 41. Bxe5 {[%clk 0:25:20]} Qxe5 {[%clk 0:30:42]} 42. Re1
{[%clk 0:23:00]} Rc4 {[%clk 0:17:51]} 43. Bf5+ {[%clk 0:15:00]} Qxg3+
{[%clk 0:15:47]} 44. Kxg3 {[%clk 0:15:28]} Nf6 {[%clk 0:11:46]} 45. Rb3
{[%clk 0:11:04]} Ne4+ {[%clk 0:03:36]} 46. Bxe4 {[%clk 0:08:42]} Rexe4
{[%clk 0:03:51]} 47. b5 {[%clk 0:07:15]} Kg7 {[%clk 0:02:29]} 48. Kf2
{[%clk 0:06:14]} Rb4 {[%clk 0:02:47]} 49. Rxb4 {[%clk 0:06:32]} Rxb4
{[%clk 0:03:15]} 50. Rxe2 {[%clk 0:06:56]} Rxb5 {[%clk 0:03:41]} 51. Re6
{[%clk 0:07:04]} Rb3 {[%clk 0:03:16]} 52. Rd6 {[%clk 0:06:11]} Rd3
{[%clk 0:03:34]} 53. h5 {[%clk 0:05:49]} d4 {[%clk 0:03:41]} 54. Rg6+
{[%clk 0:03:21]} Kh7 {[%clk 0:04:06]} 55. Rg4 {[%clk 0:03:13]} Rd1
{[%clk 0:04:07]} 56. Ke2 {[%clk 0:03:26]} 1/2-1/2